fUST/lending_fUST_20250523
["ID","MTS","AMOUNT","RATE_DAILY","PERIOD"]
[362117711,1748003453692,-166.39272517,0.00019914,2]
[362117713,1748003453702,-430.0,0.00019914,2]
[362117714,1748003453711,-430.0,0.00019914,2]
[362117717,1748003453721,-400.0,0.00019914,2]
[362117719,1748003453730,-430.0,0.00019914,2]
[362117721,1748003453740,-187.30075485,0.00019914,2]
[362117722,1748003453752,-159.67642601,0.00019914,2]
[362117724,1748003453761,-430.0,0.00019914,2]
[362117726,1748003453771,-430.0,0.00019914,2]
[362117728,1748003453780,-430.0,0.00019914,2]
[362117730,1748003453790,-430.0,0.00019914,2]
[362117732,1748003453799,-430.0,0.00019914,2]
[362117734,1748003453808,-430.0,0.00019914,2]
[362117736,1748003453819,-430.0,0.00019914,2]
[362117739,1748003453829,-430.0,0.00019914,2]
[362117741,1748003453838,-430.0,0.00019914,2]
[362117743,1748003453848,-430.0,0.00019914,2]
[362117745,1748003453857,-430.0,0.00019914,2]
[362117747,1748003453867,-430.0,0.00019914,2]
[362117749,1748003453876,-430.0,0.00019914,2]
[362117751,1748003453885,-430.0,0.00019914,2]
[362117753,1748003453895,-430.0,0.00019914,2]
[362117755,1748003453904,-430.0,0.00019914,2]
[362117756,1748003453915,-430.0,0.00019914,2]
[362117759,1748003453926,-430.0,0.00019914,2]
[362117761,1748003453936,-430.0,0.00019914,2]
[362117763,1748003453945,-430.0,0.00019914,2]
[362117765,1748003453955,-430.0,0.00019914,2]
[362117767,1748003453964,-430.0,0.00019914,2]
[362117769,1748003453974,-430.0,0.00019914,2]
[362117771,1748003453983,-430.0,0.00019914,2]
[362117773,1748003453992,-401.08164767,0.00019914,2]
[362117775,1748003454001,-430.0,0.00019914,2]
[362117777,1748003454011,-430.0,0.00019914,2]
[362117779,1748003454020,-400.0,0.00019914,2]
[362117781,1748003454029,-430.0,0.00019914,2]
[362117783,1748003454039,-403.33781037,0.00019914,2]
[362117785,1748003454048,-430.0,0.00019914,2]
[362117787,1748003454058,-401.83847347,0.00019914,2]
[362117789,1748003454067,-430.0,0.00019914,2]
[362117791,1748003454077,-404.52533915,0.00019914,2]
[362117793,1748003454086,-430.0,0.00019914,2]
[362117795,1748003454096,-432.70650513,0.00019914,2]
[362117797,1748003454105,-430.0,0.00019914,2]
[362117799,1748003454115,-373.25418713,0.00019914,2]
[362117801,1748003454124,-430.0,0.00019914,2]
[362117803,1748003454134,-371.49668215,0.00019914,2]
[362117805,1748003454143,-430.0,0.00019914,2]
[362117807,1748003454154,-430.0,0.00019914,2]
[362117809,1748003454168,-430.0,0.00019914,2]
[362117811,1748003454177,-430.0,0.00019914,2]
[362117813,1748003454187,-430.0,0.00019914,2]
[362117815,1748003454197,-430.0,0.00019914,2]
[362117817,1748003454207,-430.0,0.00019914,2]
[362117819,1748003454217,-430.0,0.00019914,2]
[362117821,1748003454226,-393.53786581,0.00019914,2]
[362117823,1748003454236,-430.0,0.00019914,2]
[362117825,1748003454247,-430.0,0.00019914,2]
[362117827,1748003454256,-430.0,0.00019914,2]
[362117829,1748003454266,-430.0,0.00019914,2]
[362117831,1748003454276,-430.0,0.00019914,2]
[362117833,1748003454286,-374.1877609,0.00019914,2]
[362117835,1748003454295,-430.0,0.00019914,2]
[362117837,1748003454305,-430.0,0.00019914,2]
[362117839,1748003454314,-372.27051652,0.00019914,2]
[362117841,1748003454324,-430.0,0.00019914,2]
[362117843,1748003454334,-384.26838468,0.00019914,2]
[362117845,1748003454344,-1000.0,0.00019914,2]
[362117847,1748003454353,-386.19768795,0.00019914,2]
[362117849,1748003454363,-322.83732617,0.00019914,2]
[362117851,1748003454373,-185.3798107,0.00019914,2]
[362117853,1748003454382,-430.0,0.00019914,2]
[362117855,1748003454391,-430.0,0.00019914,2]
[362117857,1748003454401,-430.0,0.00019914,2]
[362117859,1748003454413,-430.0,0.00019914,2]
[362117861,1748003454423,-430.0,0.00019914,2]
[362117863,1748003454433,-172.01702445,0.00019914,2]
[362117865,1748003454443,-430.0,0.00019914,2]
[362117867,1748003454452,-303.49,0.00019914,2]
[362117869,1748003454462,-427.00307512,0.00019914,2]
[362117871,1748003454472,-370.0,0.00019914,2]
[362117873,1748003454481,-430.0,0.00019914,2]
[362117875,1748003454490,-430.0,0.00019914,2]
[362117877,1748003454500,-251.50499014,0.00019914,2]
[362117879,1748003454509,-430.0,0.00019914,2]
[362117881,1748003454518,-430.0,0.00019914,2]
[362117883,1748003454528,-430.0,0.00019914,2]
[362117886,1748003454538,-430.0,0.00019914,2]
[362117888,1748003454547,-235.89594403,0.00019914,2]
[362117890,1748003454556,-430.0,0.00019914,2]
[362117892,1748003454566,-430.0,0.00019914,2]
[362117894,1748003454576,-360.0,0.00019914,2]
[362117896,1748003454585,-315.80382896,0.00019914,2]
[362117898,1748003454595,-430.0,0.00019914,2]
[362117900,1748003454605,-430.0,0.00019914,2]
[362117902,1748003454614,-430.0,0.00019914,2]
[362117904,1748003454623,-430.0,0.00019914,2]
[362117906,1748003454633,-430.0,0.00019914,2]
[362117908,1748003454643,-430.0,0.00019914,2]
[362117910,1748003454652,-430.0,0.00019914,2]
[362117912,1748003454661,-362.63877425,0.00019914,2]
[362117914,1748003454671,-430.0,0.00019914,2]
[362117916,1748003454680,-430.0,0.00019914,2]
[362117918,1748003454689,-430.0,0.00019914,2]
[362117920,1748003454699,-430.0,0.00019914,2]
[362117922,1748003454707,-430.0,0.00019914,2]
[362117924,1748003454717,-405.0,0.00019914,2]
[362117926,1748003454727,-430.0,0.00019914,2]
[362117927,1748003454736,-486.25,0.00019914,2]
[362117930,1748003454746,-430.0,0.00019914,2]
[362117932,1748003454756,-430.0,0.00019914,2]
[362117934,1748003454766,-430.0,0.00019914,2]
[362117936,1748003454775,-323.31747089,0.00019914,2]
[362117938,1748003454785,-313.21003655,0.00019914,2]
[362117940,1748003454794,-430.0,0.00019914,2]
[362117942,1748003454804,-473.68929896,0.00019914,2]
[362117944,1748003454815,-430.0,0.00019914,2]
[362117946,1748003454824,-430.0,0.00019914,2]
[362117948,1748003454834,-430.0,0.00019914,2]
[362117950,1748003454844,-430.0,0.00019919,2]
[362117952,1748003454854,-277.95163896,0.00019919,2]
[362117954,1748003454863,-430.0,0.00019919,2]
[362117956,1748003454873,-430.0,0.00019919,2]
[362117958,1748003454883,-420.0,0.0001992,2]
[362117960,1748003454893,-223.85400448,0.0001992,2]
[362117962,1748003454902,-430.0,0.0001992,2]
[362117964,1748003454914,-430.0,0.0001992,2]
[362117966,1748003454923,-470.0,0.0001992,2]
[362117967,1748003454934,-430.0,0.0001992,2]
[362117968,1748003454943,-520.62,0.0001992,2]
[362117969,1748003454953,-430.0,0.0001992,2]
[362117970,1748003454962,-315.95459838,0.0001992,2]
[362117971,1748003454972,-155.58,0.0001992,2]
[362117975,1748003454982,-378.83447029,0.0001992,2]
[362117976,1748003455079,-430.0,0.0001992,2]
[362117977,1748003455089,-430.0,0.0001992,2]
[362117978,1748003455098,-430.0,0.0001992,2]
[362117979,1748003455108,-430.0,0.0001992,2]
[362117981,1748003455118,-430.0,0.0001992,2]
[362117983,1748003455128,-430.0,0.0001992,2]
[362117985,1748003455138,-430.0,0.0001992,2]
[362117987,1748003455147,-430.0,0.0001992,2]
[362117989,1748003455157,-430.0,0.0001992,2]
[362117991,1748003455173,-430.0,0.0001992,2]
[362117993,1748003455182,-430.0,0.0001992,2]
[362117995,1748003455192,-430.0,0.0001992,2]
[362117997,1748003455202,-430.0,0.0001992,2]
[362117999,1748003455213,-200.53306665,0.0001992,2]
[362118001,1748003455223,-430.0,0.0001992,2]
[362118004,1748003455234,-430.0,0.0001992,2]
[362118006,1748003455245,-430.0,0.0001992,2]
[362118008,1748003455255,-430.0,0.0001992,2]
[362118010,1748003455264,-811.46,0.0001992,2]
[362118012,1748003455273,-430.0,0.0001992,2]
[362118014,1748003455283,-430.0,0.0001992,2]
[362118016,1748003455292,-499.41714715,0.0001992,2]
[362118018,1748003455302,-430.0,0.0001992,2]
[362118020,1748003455312,-430.0,0.0001992,2]
[362118022,1748003455322,-430.0,0.0001992,2]
[362118024,1748003455333,-430.0,0.0001992,2]
[362118026,1748003455343,-430.0,0.0001992,2]
[362118028,1748003455353,-430.0,0.0001992,2]
[362118030,1748003455363,-430.0,0.0001992,2]
[362118032,1748003455372,-180.5875709,0.0001992,2]
[362118034,1748003455382,-430.0,0.0001992,2]
[362118036,1748003455392,-430.0,0.0001992,2]
[362118038,1748003455401,-430.0,0.0001992,2]
[362118040,1748003455415,-430.0,0.0001992,2]
[362118042,1748003455425,-430.0,0.0001992,2]
[362118044,1748003455435,-430.0,0.0001992,2]
[362118045,1748003455446,-430.0,0.0001992,2]
[362118046,1748003455458,-430.0,0.0001992,2]
[362118047,1748003455468,-430.0,0.0001992,2]
[362118048,1748003455479,-430.0,0.0001992,2]
[362118049,1748003455490,-430.0,0.0001992,2]
[362118050,1748003455500,-430.0,0.0001992,2]
[362118051,1748003455510,-430.0,0.0001992,2]
[362118052,1748003455519,-430.0,0.0001992,2]
[362118053,1748003455529,-430.0,0.0001992,2]
[362118054,1748003455539,-430.0,0.0001992,2]
[362118055,1748003455548,-430.0,0.0001992,2]
[362118056,1748003455558,-577.75,0.0001992,2]
[362118057,1748003455568,-430.0,0.0001992,2]
[362118058,1748003455577,-430.0,0.0001992,2]
[362118059,1748003455587,-430.0,0.0001992,2]
[362118060,1748003455597,-430.0,0.0001992,2]
[362118061,1748003455606,-430.0,0.0001992,2]
[362118062,1748003455616,-430.0,0.0001992,2]
[362118063,1748003455626,-430.0,0.0001992,2]
[362118064,1748003455636,-467.83,0.0001992,2]
[362118065,1748003455645,-430.0,0.0001992,2]
[362118066,1748003455655,-430.0,0.0001992,2]
[362118068,1748003455665,-430.0,0.0001992,2]
[362118070,1748003455675,-430.0,0.0001992,2]
[362118072,1748003455684,-430.0,0.0001992,2]
[362118074,1748003455694,-430.0,0.0001992,2]
[362118076,1748003455704,-430.0,0.0001992,2]
[362118078,1748003455714,-430.0,0.0001992,2]
[362118080,1748003455723,-465.45,0.0001992,2]
[362118082,1748003455733,-430.0,0.0001992,2]
[362118084,1748003455743,-500.97400001,0.00019947,2]
[362118086,1748003455752,-502.45172187,0.00019973,2]
[362118088,1748003455762,-198.10192147,0.00019973,2]
[362118090,1748003455772,-300.21861457,0.0001999,2]
[362118092,1748003455782,-430.0,0.0001999,2]
[362118094,1748003455792,-430.0,0.0001999,2]
[362118096,1748003455802,-430.0,0.0001999,2]
[362118098,1748003455812,-1064.45,0.0001999,2]
[362118100,1748003455821,-430.0,0.0001999,2]
[362118102,1748003455831,-430.0,0.0001999,2]
[362118104,1748003455841,-430.0,0.0001999,2]
[362118106,1748003455851,-1011.58,0.0001999,2]
[362118108,1748003455861,-435.87301484,0.0001999,2]
[362118110,1748003455871,-430.0,0.0001999,2]
[362118112,1748003455881,-430.0,0.0001999,2]
[362118114,1748003455891,-430.0,0.0001999,2]
[362118116,1748003455900,-430.0,0.0001999,2]
[362118118,1748003455911,-430.0,0.00019991,2]
[362118120,1748003455920,-964.4,0.00019991,2]
[362118122,1748003455929,-430.0,0.00019991,2]
[362118124,1748003455939,-826.88,0.00019991,2]
[362118126,1748003455949,-430.0,0.00019991,2]
[362118128,1748003455958,-430.0,0.00019991,2]
[362118130,1748003455968,-430.0,0.00019991,2]
[362118132,1748003455978,-315.42,0.00019991,2]
[362118134,1748003455988,-516.19,0.00019991,2]
[362118136,1748003455998,-430.0,0.00019991,2]
[362118138,1748003456008,-430.0,0.00019991,2]
[362118140,1748003456019,-430.0,0.00019991,2]
[362118142,1748003456028,-430.0,0.00019991,2]
[362118144,1748003456038,-430.0,0.00019991,2]
[362118146,1748003456049,-430.0,0.00019991,2]
[362118148,1748003456058,-430.0,0.00019991,2]
[362118150,1748003456068,-430.0,0.00019991,2]
[362118152,1748003456078,-249.78474537,0.00019991,2]
[362118154,1748003456087,-430.0,0.00019991,2]
[362118156,1748003456097,-430.0,0.00019991,2]
[362118158,1748003456107,-430.0,0.00019991,2]
[362118160,1748003456117,-430.0,0.00019991,2]
[362118162,1748003456128,-430.0,0.00019991,2]
[362118164,1748003456138,-430.0,0.00019991,2]
[362118167,1748003456148,-430.0,0.00019991,2]
[362118169,1748003456161,-430.0,0.00019991,2]
[362118170,1748003456175,-514.02649153,0.00019991,2]
[362118172,1748003456185,-430.0,0.00019991,2]
[362118174,1748003456195,-503.30338917,0.00019997,2]
[362118176,1748003456206,-500.0,0.00019997,2]
[362118178,1748003456217,-500.0,0.00019997,2]
[362118180,1748003456227,-500.0,0.00019997,2]
[362118182,1748003456238,-497.60687767,0.00019997,2]
[362118184,1748003456251,-500.0,0.00019997,2]
[362118187,1748003456262,-500.0,0.00019997,2]
[362118189,1748003456272,-396.68944584,0.00019997,2]
[362118191,1748003456282,-2887.0,0.0002,2]
[362118193,1748003456292,-5000.0,0.0002,2]
[362118195,1748003456302,-5000.0,0.0002,2]
[362118197,1748003456311,-5000.0,0.0002,2]
[362118199,1748003456321,-1552.0,0.00020006,2]
[362118201,1748003456332,-485.59997574,0.00020072,2]
[362118203,1748003456341,-500.0,0.0002011,2]
[362118205,1748003456351,-1472.3,0.00020183,3]
[362118207,1748003456361,-736.16,0.00020183,3]
[362118208,1748003456370,-490.78,0.00020183,3]
[362118210,1748003456380,-395.795667,0.00020187,2]
[362118212,1748003456390,-430.0,0.00020188,2]
[362118214,1748003456399,-287.08721691,0.00020188,2]
[362118217,1748003456410,-430.0,0.00020188,2]
[362118219,1748003456424,-430.0,0.00020188,2]
[362118221,1748003456433,-430.0,0.00020188,2]
[362118223,1748003456442,-290.34475167,0.00020188,2]
[362118225,1748003456452,-430.0,0.00020188,2]
[362118227,1748003456462,-430.0,0.00020188,2]
[362118228,1748003456472,-412.9416649,0.00020188,2]
[362118230,1748003456483,-430.0,0.00020188,2]
[362118232,1748003456492,-430.0,0.00020188,2]
[362118234,1748003456502,-240.35644675,0.00020188,2]
[362118236,1748003456512,-430.0,0.00020188,2]
[362118247,1748003456522,-352.33,0.00020188,2]
[362118250,1748003456619,-291.75818439,0.00020188,2]
[362118252,1748003456629,-430.0,0.00020188,2]
[362118254,1748003456639,-430.0,0.00020188,2]
[362118256,1748003456649,-430.0,0.00020188,2]
[362118258,1748003456658,-430.0,0.00020188,2]
[362118260,1748003456673,-341.46909793,0.00020188,2]
[362118261,1748003456684,-430.0,0.00020188,2]
[362118263,1748003456695,-320.55432355,0.00020188,2]
[362118265,1748003456705,-430.0,0.00020188,2]
[362118268,1748003456715,-430.0,0.00020188,2]
[362118270,1748003456724,-290.0,0.00020188,2]
[362118272,1748003456734,-430.0,0.00020188,2]
[362118273,1748003456744,-430.0,0.00020188,2]
[362118275,1748003456753,-430.0,0.00020188,2]
[362118278,1748003456764,-380.0,0.00020188,2]
[362118280,1748003456773,-430.0,0.00020188,2]
[362118282,1748003456783,-430.0,0.00020188,2]
[362118284,1748003456792,-430.0,0.00020188,2]
[362118286,1748003456802,-200.20327045,0.00020188,2]
[362118288,1748003456812,-430.0,0.00020188,2]
[362118290,1748003456821,-430.0,0.00020188,2]
[362118292,1748003456830,-454.35079109,0.00020188,2]
[362118294,1748003456840,-283.34422294,0.00020188,2]
[362118296,1748003456849,-430.0,0.00020188,2]
[362118297,1748003456858,-430.0,0.00020188,2]
[362118300,1748003456868,-430.0,0.00020188,2]
[362118302,1748003456879,-430.0,0.00020188,2]
[362118304,1748003456889,-430.0,0.00020188,2]
[362118306,1748003456898,-430.0,0.00020188,2]
[362118308,1748003456908,-430.0,0.00020188,2]
[362118309,1748003456921,-530.0,0.00020188,2]
[362118312,1748003456931,-259.14024534,0.00020188,2]
[362118314,1748003456940,-430.0,0.00020188,2]
[362118315,1748003456950,-430.0,0.00020188,2]
[362118317,1748003456960,-430.0,0.00020188,2]
[362118319,1748003456969,-430.0,0.00020188,2]
[362118322,1748003456979,-430.0,0.00020188,2]
[362118323,1748003456991,-324.80952148,0.00020188,2]
[362118326,1748003457001,-430.0,0.00020188,2]
[362118328,1748003457010,-430.0,0.00020188,2]
[362118330,1748003457019,-430.0,0.00020188,2]
[362118332,1748003457029,-530.0,0.00020188,2]
[362118333,1748003457039,-430.0,0.00020188,2]
[362118335,1748003457048,-430.0,0.00020188,2]
[362118337,1748003457058,-430.0,0.00020188,2]
[362118339,1748003457070,-430.0,0.00020188,2]
[362118341,1748003457079,-576.813839,0.00020188,2]
[362118343,1748003457089,-285.22103633,0.00020188,2]
[362118345,1748003457099,-323.39045581,0.00020188,2]
[362118347,1748003457108,-430.0,0.00020188,2]
[362118349,1748003457117,-335.93584005,0.00020188,2]
[362118351,1748003457127,-430.0,0.00020188,2]
[362118353,1748003457136,-430.0,0.00020188,2]
[362118355,1748003457146,-430.0,0.00020188,2]
[362118357,1748003457155,-430.0,0.00020188,2]
[362118359,1748003457170,-430.0,0.00020188,2]
[362118361,1748003457180,-430.0,0.00020188,2]
[362118363,1748003457189,-430.0,0.00020188,2]
[362118364,1748003457199,-430.0,0.00020188,2]
[362118366,1748003457209,-430.0,0.00020188,2]
[362118368,1748003457218,-430.0,0.00020188,2]
[362118370,1748003457228,-422.09095317,0.00020188,2]
[362118372,1748003457238,-430.0,0.00020188,2]
[362118374,1748003457248,-430.0,0.00020188,2]
[362118376,1748003457258,-430.0,0.00020188,2]
[362118378,1748003457268,-430.0,0.00020188,2]
[362118380,1748003457278,-430.0,0.00020188,2]
[362118382,1748003457287,-430.0,0.00020188,2]
[362118384,1748003457297,-430.0,0.00020188,2]
[362118386,1748003457307,-430.0,0.00020188,2]
[362118388,1748003457316,-430.0,0.00020188,2]
[362118390,1748003457328,-430.0,0.00020188,2]
[362118392,1748003457338,-324.47274431,0.00020188,2]
[362118394,1748003457348,-430.0,0.00020188,2]
[362118396,1748003457358,-430.0,0.00020188,2]
[362118398,1748003457367,-430.0,0.00020188,2]
[362118400,1748003457377,-393.90702719,0.00020188,2]
[362118402,1748003457386,-430.0,0.00020188,2]
[362118404,1748003457396,-430.0,0.00020188,2]
[362118406,1748003457405,-322.51700316,0.00020188,2]
[362118408,1748003457419,-430.0,0.00020188,2]
[362118410,1748003457429,-430.0,0.00020188,2]
[362118412,1748003457439,-430.0,0.00020188,2]
[362118414,1748003457450,-336.77933704,0.00020188,2]
[362118416,1748003457460,-430.0,0.00020188,2]
[362118418,1748003457469,-430.0,0.00020188,2]
[362118420,1748003457479,-430.0,0.00020188,2]
[362118422,1748003457489,-430.0,0.00020188,2]
[362118424,1748003457499,-430.0,0.00020188,2]
[362118426,1748003457509,-430.0,0.00020188,2]
[362118428,1748003457518,-430.0,0.00020188,2]
[362118430,1748003457528,-430.0,0.00020188,2]
[362118432,1748003457537,-430.0,0.00020188,2]
[362118434,1748003457547,-430.0,0.00020188,2]
[362118435,1748003457557,-430.0,0.00020188,2]
[362118437,1748003457567,-430.0,0.00020188,2]
[362118439,1748003457577,-577.95019403,0.00020188,2]
[362118441,1748003457586,-430.0,0.00020188,2]
[362118443,1748003457596,-430.0,0.00020188,2]
[362118445,1748003457606,-430.0,0.00020188,2]
[362118447,1748003457616,-321.82279311,0.00020188,2]
[362118449,1748003457626,-430.0,0.00020188,2]
[362118451,1748003457635,-430.0,0.00020188,2]
[362118453,1748003457645,-430.0,0.00020188,2]
[362118455,1748003457655,-430.0,0.00020188,2]
[362118457,1748003457671,-321.64743689,0.00020188,2]
[362118459,1748003457681,-430.0,0.00020188,2]
[362118461,1748003457693,-430.0,0.00020188,2]
[362118463,1748003457703,-430.0,0.00020188,2]
[362118465,1748003457712,-430.0,0.00020188,2]
[362118467,1748003457722,-430.0,0.00020188,2]
[362118469,1748003457732,-430.0,0.00020188,2]
[362118471,1748003457741,-464.90269576,0.00020188,2]
[362118473,1748003457751,-430.0,0.00020188,2]
[362118475,1748003457761,-465.24105878,0.00020188,2]
[362118477,1748003457771,-328.91961652,0.00020188,2]
[362118479,1748003457781,-322.67361438,0.00020188,2]
[362118481,1748003457790,-430.0,0.00020188,2]
[362118483,1748003457800,-430.0,0.00020188,2]
[362118484,1748003457809,-430.0,0.00020188,2]
[362118486,1748003457819,-463.65061207,0.00020188,2]
[362118488,1748003457828,-430.0,0.00020188,2]
[362118490,1748003457838,-370.0,0.00020188,2]
[362118492,1748003457847,-480.02727481,0.00020188,2]
[362118494,1748003457857,-370.0,0.00020188,2]
[362118496,1748003457867,-430.0,0.00020188,2]
[362118498,1748003457876,-225.97803494,0.00020188,2]
[362118500,1748003457886,-430.0,0.00020188,2]
[362118502,1748003457895,-430.0,0.00020188,2]
[362118504,1748003457905,-275.83181454,0.00020188,2]
[362118506,1748003457919,-430.0,0.00020188,2]
[362118508,1748003457928,-521.44097932,0.00020188,2]
[362118518,1748003458013,-430.0,0.00020188,2]
[362118520,1748003458024,-430.0,0.00020188,2]
[362118522,1748003458034,-430.0,0.00020188,2]
[362118524,1748003458044,-430.0,0.00020188,2]
[362118526,1748003458054,-375.37552584,0.00020188,2]
[362118528,1748003458064,-430.0,0.00020188,2]
[362118530,1748003458075,-430.0,0.00020188,2]
[362118532,1748003458085,-430.0,0.00020188,2]
[362118534,1748003458095,-430.0,0.00020188,2]
[362118536,1748003458104,-473.38605538,0.00020188,2]
[362118537,1748003458114,-570.0,0.00020188,2]
[362118540,1748003458125,-430.0,0.00020188,2]
[362118542,1748003458135,-430.0,0.00020188,2]
[362118543,1748003458145,-430.0,0.00020188,2]
[362118546,1748003458157,-430.0,0.00020188,2]
[362118548,1748003458172,-430.0,0.00020188,2]
[362118550,1748003458182,-430.0,0.00020188,2]
[362118551,1748003458192,-430.0,0.00020188,2]
[362118553,1748003458202,-430.0,0.00020188,2]
[362118555,1748003458213,-430.0,0.00020188,2]
[362118557,1748003458223,-521.58930105,0.00020188,2]
[362118559,1748003458232,-199.74287815,0.00020188,2]
[362118561,1748003458245,-430.0,0.00020188,2]
[362118563,1748003458255,-217.54617617,0.00020188,2]
[362118565,1748003458265,-372.2319265,0.00020188,2]
[362118567,1748003458275,-430.0,0.00020188,2]
[362118569,1748003458285,-315.98858696,0.00020188,2]
[362118571,1748003458295,-430.0,0.00020188,2]
[362118573,1748003458305,-396.3045612,0.00020188,2]
[362118575,1748003458315,-430.0,0.00020188,2]
[362118577,1748003458324,-390.06876705,0.00020188,2]
[362118579,1748003458335,-315.56374583,0.00020188,2]
[362118581,1748003458344,-430.0,0.00020188,2]
[362118583,1748003458354,-430.0,0.00020188,2]
[362118585,1748003458363,-430.0,0.00020188,2]
[362118587,1748003458373,-407.08578025,0.00020188,2]
[362118589,1748003458383,-430.0,0.00020188,2]
[362118591,1748003458392,-360.34194656,0.00020188,2]
[362118593,1748003458402,-430.0,0.00020188,2]
[362118595,1748003458416,-430.0,0.00020188,2]
[362118597,1748003458426,-430.0,0.00020188,2]
[362118599,1748003458436,-430.0,0.00020188,2]
[362118601,1748003458446,-317.38376042,0.00020188,2]
[362118603,1748003458456,-175.98700749,0.00020188,2]
[362118605,1748003458466,-430.0,0.00020188,2]
[362118607,1748003458476,-310.0,0.00020188,2]
[362118609,1748003458486,-339.92019048,0.00020188,2]
[362118611,1748003458495,-430.0,0.00020188,2]
[362118613,1748003458504,-199.65,0.00020188,2]
[362118615,1748003458515,-430.0,0.00020188,2]
[362118617,1748003458524,-430.0,0.00020188,2]
[362118619,1748003458533,-430.0,0.00020188,2]
[362118621,1748003458543,-430.0,0.00020188,2]
[362118623,1748003458553,-430.0,0.00020188,2]
[362118625,1748003458562,-311.47213439,0.00020188,2]
[362118626,1748003458571,-370.63307006,0.00020188,2]
[362118628,1748003458581,-310.0,0.00020188,2]
[362118630,1748003458590,-430.0,0.00020188,2]
[362118632,1748003458600,-430.0,0.00020188,2]
[362118634,1748003458610,-430.0,0.00020188,2]
[362118636,1748003458620,-430.0,0.00020188,2]
[362118638,1748003458630,-1013.43282577,0.00020188,2]
[362118640,1748003458640,-430.0,0.00020188,2]
[362118642,1748003458650,-430.0,0.00020188,2]
[362118644,1748003458659,-430.0,0.00020188,2]
[362118646,1748003458673,-365.28253274,0.00020188,2]
[362118648,1748003458683,-189.28271244,0.00020188,2]
[362118650,1748003458692,-436.64761898,0.00020188,2]
[362118652,1748003458702,-430.0,0.00020188,2]
[362118654,1748003458712,-430.0,0.00020188,2]
[362118656,1748003458721,-289.74675526,0.00020188,2]
[362118658,1748003458731,-430.0,0.00020188,2]
[362118660,1748003458741,-225.1479753,0.00020188,2]
[362118662,1748003458751,-430.0,0.00020188,2]
[362118664,1748003458760,-286.01049874,0.00020188,2]
[362118666,1748003458769,-281.87611108,0.00020188,2]
[362118668,1748003458779,-430.0,0.00020188,2]
[362118670,1748003458789,-430.0,0.00020188,2]
[362118672,1748003458799,-488.79116484,0.00020188,2]
[362118674,1748003458809,-474.46610968,0.00020188,2]
[362118676,1748003458819,-545.75553759,0.00020188,2]
[362118678,1748003458829,-291.51757126,0.00020188,2]
[362118679,1748003458838,-430.0,0.00020188,2]
[362118681,1748003458848,-430.0,0.00020188,2]
[362118683,1748003458858,-430.0,0.00020188,2]
[362118685,1748003458867,-430.0,0.00020188,2]
[362118687,1748003458877,-280.0,0.00020188,2]
[362118689,1748003458887,-334.3807479,0.00020188,2]
[362118691,1748003458897,-430.0,0.00020188,2]
[362118693,1748003458906,-156.7,0.00020188,2]